fUST/lending_fUST_20260611
["ID","MTS","AMOUNT","RATE_DAILY","PERIOD"]
[424740309,1781111442000,-477.50645723,0.00015702,2]
[424740312,1781111442000,-434.90244332,0.00015702,2]
[424740311,1781111442000,-455.88157099,0.00015702,2]
[424740304,1781111442000,-623.28800459,0.00015702,2]
[424740308,1781111442000,-566.57082842,0.00015702,2]
[424740313,1781111442000,-463.74698219,0.00015702,2]
[424740306,1781111442000,-450.89312371,0.00015702,2]
[424740310,1781111442000,-499.88264817,0.00015702,2]
[424740384,1781111443000,-281.33152528,0.00016012,2]
[424740394,1781111443000,-177.80585105,0.00016012,2]
[424740392,1781111443000,-560.0601139,0.00016012,2]
[424740383,1781111443000,-2814.154466,0.00016012,2]
[424740385,1781111443000,-464.01392569,0.00016012,2]
[424740391,1781111443000,-574.25969378,0.00016012,2]
[424740380,1781111443000,-2814.154456,0.00016012,2]
[424740382,1781111443000,-2814.154456,0.00016012,2]
[424740388,1781111443000,-559.95824019,0.00016012,2]
[424740379,1781111443000,-500.0,0.00016012,2]
[424740400,1781111443000,-169.0956571,0.00016012,2]
[424740386,1781111443000,-634.13365189,0.00016012,2]
[424740396,1781111443000,-601.19083162,0.00016012,2]
[424740405,1781111443000,-161.12243962,0.00016012,2]
[424740395,1781111443000,-299.96121177,0.00016012,2]
[424740398,1781111443000,-822.84283658,0.00016012,2]
[424740393,1781111443000,-183.44533703,0.00016012,2]
[424740402,1781111443000,-195.29224735,0.00016012,2]
[424740397,1781111443000,-176.22203932,0.00016012,2]
[424740399,1781111443000,-755.42777122,0.00016012,2]
[424740403,1781111443000,-241.50122561,0.00016012,2]
[424740415,1781111443000,-221.50743981,0.00016012,2]
[424740414,1781111443000,-154.53370475,0.00016012,2]
[424740416,1781111443000,-618.32930959,0.00016012,2]
[424740417,1781111443000,-744.45347,0.00016012,2]
[424740419,1781111443000,-178.4135658,0.00016012,2]
[424740389,1781111443000,-313.20223921,0.00016012,2]
[424740404,1781111443000,-419.29153015,0.00016012,2]
[424740390,1781111443000,-182.2533024,0.00016012,2]
[424740352,1781111443000,-151.0,0.00015854,2]
[424740387,1781111443000,-460.67797043,0.00016012,2]
[424740421,1781111443000,-501.66813574,0.00016012,2]
[424740351,1781111443000,-151.0,0.00015854,2]
[424740353,1781111443000,-151.0,0.00015854,2]
[424740355,1781111443000,-2814.154456,0.00015854,2]
[424740365,1781111443000,-156.86693923,0.00015999,2]
[424740363,1781111443000,-174.87537824,0.00015999,2]
[424740361,1781111443000,-399.93426658,0.00015999,2]
[424740359,1781111443000,-8144.2379331,0.00015913,2]
[424740356,1781111443000,-2814.154456,0.00015854,2]
[424740357,1781111443000,-2814.154456,0.00015854,2]
[424740362,1781111443000,-202.43923738,0.00015999,2]
[424740358,1781111443000,-151.0,0.000159,2]
[424740360,1781111443000,-188.16479988,0.00015999,2]
[424740381,1781111443000,-2814.154456,0.00016012,2]
[424740354,1781111443000,-2814.154456,0.00015854,2]
[424740366,1781111443000,-351.16592144,0.00015999,2]
[424740377,1781111443000,-558.3401025,0.00015999,2]
[424740368,1781111443000,-319.20320537,0.00015999,2]
[424740375,1781111443000,-656.07221693,0.00015999,2]
[424740367,1781111443000,-184.65744708,0.00015999,2]
[424740371,1781111443000,-421.48233297,0.00015999,2]
[424740369,1781111443000,-592.73013553,0.00015999,2]
[424740373,1781111443000,-298.64679656,0.00015999,2]
[424740374,1781111443000,-167.45568297,0.00015999,2]
[424740372,1781111443000,-157.86384927,0.00015999,2]
[424740378,1781111443000,-491.20075363,0.00015999,2]
[424740370,1781111443000,-203.99610219,0.00015999,2]
[424740376,1781111443000,-540.7926253,0.00015999,2]
[424740364,1781111443000,-398.22841209,0.00015999,2]
[424740420,1781111443000,-640.13548178,0.00016012,2]
[424740456,1781111443000,-597.34261813,0.00016033,2]
[424740413,1781111443000,-236.15247634,0.00016012,2]
[424740461,1781111443000,-151.0,0.000162,2]
[424740455,1781111443000,-454.11030065,0.00016033,2]
[424740454,1781111443000,-609.76153085,0.00016033,2]
[424740481,1781111443000,-1133.14165683,0.00016787,2]
[424740457,1781111443000,-326.82778213,0.00016033,2]
[424740453,1781111443000,-163.06761052,0.00016033,2]
[424740460,1781111443000,-279.75146193,0.00016152,7]
[424740463,1781111443000,-1000.0,0.00016287,2]
[424740474,1781111443000,-151.0,0.00016438,2]
[424740473,1781111443000,-228.76512,0.00016438,2]
[424740471,1781111443000,-151.0,0.00016438,2]
[424740469,1781111443000,-151.0,0.00016438,2]
[424740466,1781111443000,-944.28471403,0.00016322,2]
[424740462,1781111443000,-1879.40263947,0.00016272,2]
[424740465,1781111443000,-1028.55354572,0.00016322,2]
[424740467,1781111443000,-172.02,0.00016438,2]
[424740470,1781111443000,-151.0,0.00016438,2]
[424740464,1781111443000,-151.0,0.000163,2]
[424740472,1781111443000,-151.0,0.00016438,2]
[424740468,1781111443000,-153.369935,0.00016438,2]
[424740475,1781111443000,-151.0,0.00016438,2]
[424740477,1781111443000,-155.240135,0.00016438,2]
[424740478,1781111443000,-279.75146193,0.00016627,7]
[424740480,1781111443000,-151.0,0.000167,2]
[424740479,1781111443000,-151.0,0.000167,2]
[424740476,1781111443000,-212.032475,0.00016438,2]
[424740482,1781111443000,-217.961,0.00016966,2]
[424740458,1781111443000,-647.67022765,0.00016033,2]
[424740459,1781111443000,-158.38534769,0.00016033,2]
[424740407,1781111443000,-874.43718559,0.00016012,2]
[424740451,1781111443000,-450.35942755,0.00016033,2]
[424740411,1781111443000,-607.84209466,0.00016012,2]
[424740409,1781111443000,-743.53422318,0.00016012,2]
[424740412,1781111443000,-652.35366499,0.00016012,2]
[424740422,1781111443000,-615.77671944,0.00016012,2]
[424740428,1781111443000,-166.43143068,0.00016012,2]
[424740425,1781111443000,-166.15995442,0.00016012,2]
[424740431,1781111443000,-247.25663953,0.00016012,2]
[424740452,1781111443000,-539.07564126,0.00016033,2]
[424740426,1781111443000,-273.23481721,0.00016012,2]
[424740430,1781111443000,-166.73964267,0.00016012,2]
[424740423,1781111443000,-534.92431815,0.00016012,2]
[424740434,1781111443000,-162.04527296,0.00016012,2]
[424740438,1781111443000,-312.98771817,0.00016033,2]
[424740436,1781111443000,-636.67527631,0.00016012,2]
[424740433,1781111443000,-214.19680601,0.00016012,2]
[424740437,1781111443000,-654.93433817,0.00016012,2]
[424740435,1781111443000,-615.68033986,0.00016012,2]
[424740450,1781111443000,-573.5024822,0.00016033,2]
[424740447,1781111443000,-537.42804171,0.00016033,2]
[424740445,1781111443000,-542.38234279,0.00016033,2]
[424740446,1781111443000,-202.39496347,0.00016033,2]
[424740444,1781111443000,-304.48035817,0.00016033,2]
[424740442,1781111443000,-210.34932121,0.00016033,2]
[424740443,1781111443000,-434.52864977,0.00016033,2]
[424740441,1781111443000,-218.90335833,0.00016033,2]
[424740448,1781111443000,-477.55938476,0.00016033,2]
[424740440,1781111443000,-329.4479753,0.00016033,2]
[424740439,1781111443000,-191.83619896,0.00016033,2]
[424740449,1781111443000,-572.96354458,0.00016033,2]
[424740523,1781111444000,-151.0,0.000176,2]
[424740525,1781111444000,-151.0,0.000176,2]
[424740529,1781111444000,-500.0,0.00017698,2]
[424740533,1781111444000,-151.0,0.00017699,2]
[424740534,1781111444000,-196.272779,0.0001772,2]
[424740520,1781111444000,-151.0,0.000176,2]
[424740518,1781111444000,-151.0,0.000176,2]
[424740521,1781111444000,-151.0,0.000176,2]
[424740522,1781111444000,-151.0,0.000176,2]
[424740517,1781111444000,-151.0,0.000176,2]
[424740519,1781111444000,-151.0,0.000176,2]
[424740524,1781111444000,-151.0,0.000176,2]
[424740526,1781111444000,-151.0,0.000176,2]
[424740536,1781111444000,-160.05276,0.0001772,2]
[424740527,1781111444000,-151.0,0.000176,2]
[424740528,1781111444000,-500.0,0.00017698,2]
[424740530,1781111444000,-745.53,0.00017698,2]
[424740532,1781111444000,-151.0,0.00017699,2]
[424740535,1781111444000,-436.507525,0.0001772,2]
[424740547,1781111444000,-1815.11704242,0.00017938,7]
[424740543,1781111444000,-1000.0,0.00017916,2]
[424740538,1781111444000,-279.75146195,0.00017735,7]
[424740537,1781111444000,-1879.40263947,0.00017729,2]
[424740540,1781111444000,-6168.504682,0.00017809,2]
[424740539,1781111444000,-151.0,0.000178,2]
[424740546,1781111444000,-745.53,0.00017929,2]
[424740515,1781111444000,-152.50347975,0.00017599,2]
[424740531,1781111444000,-745.53,0.00017698,2]
[424740516,1781111444000,-151.0,0.000176,2]
[424740498,1781111444000,-500.0,0.00016989,2]
[424740512,1781111444000,-151.0,0.00017599,2]
[424740541,1781111444000,-152.0,0.00017829,2]
[424740483,1781111444000,-189.93628803,0.00016966,2]
[424740489,1781111444000,-745.53,0.00016978,2]
[424740486,1781111444000,-217.99,0.00016978,2]
[424740488,1781111444000,-500.0,0.00016978,2]
[424740491,1781111444000,-554.4652045,0.00016979,2]
[424740493,1781111444000,-151.0,0.00016979,2]
[424740492,1781111444000,-2035.0432331,0.00016979,2]
[424740502,1781111444000,-16830.6184165,0.0001699,2]
[424740501,1781111444000,-745.53,0.00016989,2]
[424740490,1781111444000,-7981.3261459,0.00016979,2]
[424740499,1781111444000,-500.0,0.00016989,2]
[424740494,1781111444000,-151.0,0.00016979,2]
[424740496,1781111444000,-151.0,0.00016979,2]
[424740495,1781111444000,-151.0,0.00016979,2]
[424740497,1781111444000,-199.36,0.00016989,2]
[424740500,1781111444000,-745.53,0.00016989,2]
[424740503,1781111444000,-151.0,0.0001699,2]
[424740504,1781111444000,-151.0,0.0001699,2]
[424740506,1781111444000,-151.0,0.000171,2]
[424740514,1781111444000,-151.0,0.00017599,2]
[424740505,1781111444000,-151.0,0.0001699,2]
[424740507,1781111444000,-279.75146193,0.00017102,7]
[424740511,1781111444000,-151.0,0.000175,2]
[424740513,1781111444000,-151.0,0.00017599,2]
[424740510,1781111444000,-152.0,0.00017439,7]
[424740509,1781111444000,-151.0,0.000173,2]
[424740508,1781111444000,-317.41758611,0.00017172,2]
[424740484,1781111444000,-500.0,0.00016978,2]
[424740542,1781111444000,-151.0,0.000179,2]
[424740545,1781111444000,-500.0,0.00017929,2]
[424740583,1781111444000,-500.0,0.00018082,2]
[424740582,1781111444000,-500.0,0.00018082,2]
[424740581,1781111444000,-221.41861203,0.00018082,2]
[424740578,1781111444000,-500.0,0.00018082,2]
[424740576,1781111444000,-151.89441419,0.00018082,2]
[424740580,1781111444000,-500.0,0.00018082,2]
[424740586,1781111444000,-500.0,0.00018082,2]
[424740587,1781111444000,-500.0,0.00018082,2]
[424740599,1781111444000,-2952.0,0.00018082,2]
[424740597,1781111444000,-2952.0,0.00018082,2]
[424740598,1781111444000,-2952.0,0.00018082,2]
[424740588,1781111444000,-500.0,0.00018082,2]
[424740591,1781111444000,-151.5,0.00018082,2]
[424740589,1781111444000,-520.30683827,0.00018082,2]
[424740595,1781111444000,-2952.0,0.00018082,2]
[424740593,1781111444000,-151.5,0.00018082,2]
[424740594,1781111444000,-242.5,0.00018082,2]
[424740592,1781111444000,-151.5,0.00018082,2]
[424740596,1781111444000,-2952.0,0.00018082,2]
[424740600,1781111444000,-2952.0,0.00018082,2]
[424740602,1781111444000,-2952.0,0.00018082,2]
[424740603,1781111444000,-2952.0,0.00018082,2]
[424740604,1781111444000,-2952.0,0.00018082,2]
[424740601,1781111444000,-2952.0,0.00018082,2]
[424740606,1781111444000,-2952.0,0.00018082,2]
[424740605,1781111444000,-2952.0,0.00018082,2]
[424740544,1781111444000,-244.0,0.00017916,2]
[424740584,1781111444000,-355.22276474,0.00018082,2]
[424740579,1781111444000,-500.0,0.00018082,2]
[424740590,1781111444000,-229.82398208,0.00018082,2]
[424740574,1781111444000,-500.0,0.00018082,2]
[424740577,1781111444000,-500.0,0.00018082,2]
[424740560,1781111444000,-745.53,0.00017999,2]
[424740559,1781111444000,-745.53,0.00017999,2]
[424740548,1781111444000,-420.4918253,0.00017938,7]
[424740550,1781111444000,-414.07180647,0.00017999,2]
[424740552,1781111444000,-745.53,0.00017999,2]
[424740553,1781111444000,-745.53,0.00017999,2]
[424740551,1781111444000,-745.53,0.00017999,2]
[424740558,1781111444000,-745.53,0.00017999,2]
[424740554,1781111444000,-745.53,0.00017999,2]
[424740556,1781111444000,-745.53,0.00017999,2]
[424740555,1781111444000,-745.53,0.00017999,2]
[424740557,1781111444000,-745.53,0.00017999,2]
[424740561,1781111444000,-745.63,0.00017999,2]
[424740549,1781111444000,-500.0,0.00017999,2]
[424740565,1781111444000,-151.5,0.00018082,2]
[424740562,1781111444000,-113718.39524049,0.00018,2]
[424740575,1781111444000,-500.0,0.00018082,2]
[424740568,1781111444000,-151.5,0.00018082,2]
[424740572,1781111444000,-500.0,0.00018082,2]
[424740569,1781111444000,-248.72329838,0.00018082,2]
[424740573,1781111444000,-500.0,0.00018082,2]
[424740585,1781111444000,-500.0,0.00018082,2]
[424740571,1781111444000,-500.0,0.00018082,2]
[424740563,1781111444000,-25629.058994,0.00018,2]
[424740567,1781111444000,-151.5,0.00018082,2]
[424740564,1781111444000,-1241.234138,0.00018,2]
[424740566,1781111444000,-191.00058308,0.00018082,2]
[424740570,1781111444000,-500.0,0.00018082,2]
[424740644,1781111445000,-1457.2321,0.00019178,2]
[424740646,1781111445000,-500.83756047,0.00019178,2]
[424740647,1781111445000,-500.0,0.00019178,2]
[424740648,1781111445000,-500.0,0.00019178,2]
[424740643,1781111445000,-500.0,0.00019178,2]
[424740640,1781111445000,-500.0,0.00019178,2]
[424740645,1781111445000,-500.0,0.00019178,2]
[424740638,1781111445000,-500.0,0.00019178,2]
[424740641,1781111445000,-500.0,0.00019178,2]
[424740649,1781111445000,-501.39802236,0.00019178,2]
[424740651,1781111445000,-500.0,0.00019178,2]
[424740642,1781111445000,-557.39,0.00019178,2]
[424740663,1781111445000,-500.0,0.00019178,2]
[424740656,1781111445000,-500.0,0.00019178,2]
[424740652,1781111445000,-502.49170059,0.00019178,2]
[424740662,1781111445000,-501.09917885,0.00019178,2]
[424740653,1781111445000,-501.24,0.00019178,2]
[424740650,1781111445000,-301.63015491,0.00019178,2]
[424740657,1781111445000,-500.0,0.00019178,2]
[424740658,1781111445000,-500.0,0.00019178,2]
[424740660,1781111445000,-500.0,0.00019178,2]
[424740659,1781111445000,-500.0,0.00019178,2]
[424740655,1781111445000,-500.0,0.00019178,2]
[424740654,1781111445000,-500.86846034,0.00019178,2]
[424740666,1781111445000,-501.22791312,0.00019178,2]
[424740667,1781111445000,-501.27420063,0.00019178,2]
[424740639,1781111445000,-500.0,0.00019178,2]
[424740661,1781111445000,-460.5569888,0.00019178,2]
[424740633,1781111445000,-152.0,0.00019157,7]
[424740609,1781111445000,-2952.0,0.00018082,2]
[424740635,1781111445000,-501.24035216,0.00019178,2]
[424740610,1781111445000,-2952.0,0.00018082,2]
[424740607,1781111445000,-2952.0,0.00018082,2]
[424740612,1781111445000,-2952.0,0.00018082,2]
[424740611,1781111445000,-2952.0,0.00018082,2]
[424740608,1781111445000,-2952.0,0.00018082,2]
[424740613,1781111445000,-2952.0,0.00018082,2]
[424740615,1781111445000,-2952.0,0.00018082,2]
[424740621,1781111445000,-261.904515,0.00018606,2]
[424740619,1781111445000,-313.87996343,0.00018563,2]
[424740618,1781111445000,-151.0,0.000184,2]
[424740625,1781111445000,-231.37,0.00018904,2]
[424740614,1781111445000,-2952.0,0.00018082,2]
[424740620,1781111445000,-1815.11704246,0.00018602,7]
[424740616,1781111445000,-2952.0,0.00018082,2]
[424740617,1781111445000,-151.0,0.000183,2]
[424740624,1781111445000,-151.0,0.000189,2]
[424740622,1781111445000,-231.37,0.0001863,2]
[424740623,1781111445000,-151.0,0.000188,2]
[424740626,1781111445000,-768.91038747,0.00019089,2]
[424740637,1781111445000,-500.0,0.00019178,2]
[424740636,1781111445000,-500.0,0.00019178,2]
[424740628,1781111445000,-184.52363489,0.000191,2]
[424740627,1781111445000,-160.0,0.00019089,2]
[424740629,1781111445000,-1536.5202778,0.000191,2]
[424740634,1781111445000,-152.0,0.00019157,7]
[424740630,1781111445000,-199.47339354,0.000191,2]
[424740631,1781111445000,-152.0,0.00019103,7]
[424740632,1781111445000,-152.0,0.0001913,7]
[424740665,1781111445000,-500.0,0.00019178,2]
[424740668,1781111445000,-500.0,0.00019178,2]
[424740669,1781111445000,-502.60661934,0.00019178,2]
[424740708,1781111445000,-500.0,0.00019178,2]
[424740707,1781111445000,-550.58,0.00019178,2]
[424740710,1781111445000,-500.0,0.00019178,2]
[424740703,1781111445000,-500.0,0.00019178,2]
[424740702,1781111445000,-556.55,0.00019178,2]
[424740704,1781111445000,-501.00455235,0.00019178,2]
[424740711,1781111445000,-500.0,0.00019178,2]
[424740705,1781111445000,-500.0,0.00019178,2]
[424740713,1781111445000,-500.0,0.00019178,2]
[424740724,1781111445000,-152.30180357,0.00019178,2]
[424740714,1781111445000,-500.0,0.00019178,2]
[424740723,1781111445000,-500.0,0.00019178,2]
[424740712,1781111445000,-500.0,0.00019178,2]
[424740716,1781111445000,-501.76769253,0.00019178,2]
[424740715,1781111445000,-501.22761484,0.00019178,2]
[424740717,1781111445000,-500.0,0.00019178,2]
[424740720,1781111445000,-500.0,0.00019178,2]
[424740719,1781111445000,-502.12379239,0.00019178,2]
[424740721,1781111445000,-504.01822884,0.00019178,2]
[424740722,1781111445000,-501.22445126,0.00019178,2]
[424740718,1781111445000,-500.0,0.00019178,2]
[424740725,1781111445000,-260.77042069,0.00019178,2]
[424740728,1781111445000,-500.0,0.00019178,2]
[424740727,1781111445000,-500.0,0.00019178,2]
[424740726,1781111445000,-500.98534301,0.00019178,2]
[424740730,1781111445000,-500.0,0.00019178,2]
[424740729,1781111445000,-500.0,0.00019178,2]
[424740709,1781111445000,-500.0,0.00019178,2]
[424740701,1781111445000,-500.0,0.00019178,2]
[424740664,1781111445000,-500.58233338,0.00019178,2]
[424740700,1781111445000,-499.4255424,0.00019178,2]
[424740706,1781111445000,-365.80405162,0.00019178,2]
[424740670,1781111445000,-500.0,0.00019178,2]
[424740671,1781111445000,-170.89347022,0.00019178,2]
[424740674,1781111445000,-500.0,0.00019178,2]
[424740672,1781111445000,-501.76180418,0.00019178,2]
[424740673,1781111445000,-502.25037702,0.00019178,2]
[424740676,1781111445000,-228.13298398,0.00019178,2]
[424740675,1781111445000,-602.94992951,0.00019178,2]
[424740686,1781111445000,-530.35,0.00019178,2]
[424740680,1781111445000,-502.09449831,0.00019178,2]
[424740683,1781111445000,-502.32406445,0.00019178,2]
[424740687,1781111445000,-355.38161929,0.00019178,2]
[424740688,1781111445000,-502.25153817,0.00019178,2]
[424740679,1781111445000,-500.0,0.00019178,2]
[424740685,1781111445000,-500.0,0.00019178,2]
[424740689,1781111445000,-502.82402678,0.00019178,2]
[424740684,1781111445000,-600.04651886,0.00019178,2]
[424740695,1781111445000,-500.0,0.00019178,2]
[424740696,1781111445000,-543.96,0.00019178,2]
[424740697,1781111445000,-500.0,0.00019178,2]
[424740694,1781111445000,-501.58244736,0.00019178,2]
[424740692,1781111445000,-502.15131115,0.00019178,2]
[424740698,1781111445000,-500.0,0.00019178,2]
[424740699,1781111445000,-500.0,0.00019178,2]
[424740691,1781111445000,-633.13,0.00019178,2]
[424740690,1781111445000,-500.0,0.00019178,2]
[424740682,1781111445000,-501.28269051,0.00019178,2]
[424740677,1781111445000,-500.0,0.00019178,2]
[424740693,1781111445000,-500.0,0.00019178,2]
[424740771,1781111446000,-501.2130619,0.00019178,2]
[424740785,1781111446000,-500.0,0.00019178,2]
[424740784,1781111446000,-500.84649567,0.00019178,2]
[424740775,1781111446000,-503.77262068,0.00019178,2]
[424740769,1781111446000,-500.67094121,0.00019178,2]
[424740766,1781111446000,-521.35,0.00019178,2]
[424740781,1781111446000,-1004.94,0.00019178,2]
[424740777,1781111446000,-500.0,0.00019178,2]
[424740783,1781111446000,-500.0,0.00019178,2]
[424740779,1781111446000,-500.0,0.00019178,2]
[424740773,1781111446000,-500.0,0.00019178,2]
[424740768,1781111446000,-502.06503534,0.00019178,2]
[424740786,1781111446000,-756.07,0.00019178,2]
[424740798,1781111446000,-500.86291727,0.00019178,2]
[424740789,1781111446000,-500.27132133,0.00019178,2]
[424740790,1781111446000,-303.80381606,0.00019178,2]
[424740795,1781111446000,-500.0,0.00019178,2]
[424740793,1781111446000,-501.03985406,0.00019178,2]
[424740797,1781111446000,-500.0,0.00019178,2]
[424740794,1781111446000,-559.26,0.00019178,2]
[424740792,1781111446000,-500.0,0.00019178,2]
[424740788,1781111446000,-565.08059711,0.00019178,2]
[424740796,1781111446000,-179.10454369,0.00019178,2]
[424740791,1781111446000,-500.0,0.00019178,2]
[424740799,1781111446000,-500.0,0.00019178,2]
[424740800,1781111446000,-500.94516121,0.00019178,2]
[424740763,1781111446000,-632.82,0.00019178,2]
[424740787,1781111446000,-503.03071731,0.00019178,2]
[424740764,1781111446000,-500.0,0.00019178,2]
[424740747,1781111446000,-500.0,0.00019178,2]
[424740760,1781111446000,-505.48277603,0.00019178,2]
[424740810,1781111446000,-1340.7,0.00019178,2]
[424740732,1781111446000,-500.0,0.00019178,2]
[424740737,1781111446000,-500.0,0.00019178,2]
[424740736,1781111446000,-397.06856014,0.00019178,2]
[424740735,1781111446000,-500.0,0.00019178,2]
[424740738,1781111446000,-500.0,0.00019178,2]
[424740731,1781111446000,-502.26761368,0.00019178,2]
[424740733,1781111446000,-500.0,0.00019178,2]
[424740739,1781111446000,-567.74,0.00019178,2]
[424740740,1781111446000,-5053.28,0.00019178,2]
[424740741,1781111446000,-501.40267835,0.00019178,2]
[424740742,1781111446000,-500.0,0.00019178,2]
[424740744,1781111446000,-422.65272112,0.00019178,2]
[424740762,1781111446000,-500.0,0.00019178,2]
[424740751,1781111446000,-501.41456382,0.00019178,2]
[424740746,1781111446000,-500.0,0.00019178,2]
[424740750,1781111446000,-500.0,0.00019178,2]
[424740748,1781111446000,-500.0,0.00019178,2]
[424740749,1781111446000,-500.0,0.00019178,2]
[424740752,1781111446000,-500.0,0.00019178,2]
[424740754,1781111446000,-500.0,0.00019178,2]
[424740753,1781111446000,-500.0,0.00019178,2]
[424740757,1781111446000,-690.0,0.00019178,2]
[424740761,1781111446000,-500.0,0.00019178,2]
[424740756,1781111446000,-500.0,0.00019178,2]
[424740758,1781111446000,-502.26352971,0.00019178,2]
[424740755,1781111446000,-500.0,0.00019178,2]
[424740759,1781111446000,-500.0,0.00019178,2]
[424740745,1781111446000,-501.49269362,0.00019178,2]
[424740734,1781111446000,-500.0,0.00019178,2]
[424740804,1781111446000,-500.0,0.00019178,2]
[424740801,1781111446000,-500.0,0.00019178,2]
[424740832,1781111446000,-267.755606,0.00019178,2]
[424740836,1781111446000,-267.755606,0.00019178,2]
[424740834,1781111446000,-267.755606,0.00019178,2]
[424740840,1781111446000,-267.755606,0.00019178,2]
[424740842,1781111446000,-267.755606,0.00019178,2]
[424740850,1781111446000,-267.755613,0.00019178,2]
[424740848,1781111446000,-267.755606,0.00019178,2]
[424740846,1781111446000,-267.755606,0.00019178,2]
[424740849,1781111446000,-267.755606,0.00019178,2]
[424740845,1781111446000,-267.755606,0.00019178,2]
[424740847,1781111446000,-267.755606,0.00019178,2]
[424740841,1781111446000,-267.755606,0.00019178,2]
[424740843,1781111446000,-267.755606,0.00019178,2]
[424740835,1781111446000,-267.755606,0.00019178,2]
[424740851,1781111446000,-231.37,0.00019178,2]
[424740854,1781111446000,-184.52363489,0.000193,2]
[424740858,1781111446000,-500.81665279,0.00019452,2]
[424740860,1781111446000,-501.30059945,0.00019452,2]
[424740853,1781111446000,-151.0,0.000192,2]
[424740856,1781111446000,-500.0,0.00019452,2]
[424740857,1781111446000,-500.0,0.00019452,2]
[424740855,1781111446000,-1536.5202778,0.000193,2]
[424740859,1781111446000,-502.29576919,0.00019452,2]
[424740862,1781111446000,-1457.2321,0.00019452,2]
[424740863,1781111446000,-500.0,0.00019452,2]
[424740864,1781111446000,-500.0,0.00019452,2]
[424740861,1781111446000,-251.28,0.00019452,2]
[424740809,1781111446000,-502.01615609,0.00019178,2]
[424740852,1781111446000,-313.87996343,0.00019193,2]
[424740833,1781111446000,-267.755606,0.00019178,2]
[424740844,1781111446000,-267.755606,0.00019178,2]
[424740837,1781111446000,-267.755606,0.00019178,2]
[424740831,1781111446000,-267.755606,0.00019178,2]
[424740811,1781111446000,-218.51974,0.00019178,2]
[424740805,1781111446000,-500.0,0.00019178,2]
[424740806,1781111446000,-500.0,0.00019178,2]
[424740812,1781111446000,-218.51974,0.00019178,2]
[424740803,1781111446000,-160.25563245,0.00019178,2]
[424740808,1781111446000,-502.68962055,0.00019178,2]
[424740807,1781111446000,-500.0,0.00019178,2]
[424740813,1781111446000,-218.51974,0.00019178,2]
[424740818,1781111446000,-218.51974,0.00019178,2]
[424740819,1781111446000,-218.51974,0.00019178,2]
[424740822,1781111446000,-218.51974,0.00019178,2]
[424740821,1781111446000,-218.51974,0.00019178,2]
[424740825,1781111446000,-218.51974,0.00019178,2]
[424740802,1781111446000,-501.55729998,0.00019178,2]
[424740816,1781111446000,-218.51974,0.00019178,2]
[424740815,1781111446000,-218.51974,0.00019178,2]
[424740830,1781111446000,-218.519745,0.00019178,2]
[424740839,1781111446000,-267.755606,0.00019178,2]
[424740829,1781111446000,-218.51974,0.00019178,2]
[424740838,1781111446000,-267.755606,0.00019178,2]
[424740828,1781111446000,-218.51974,0.00019178,2]
[424740827,1781111446000,-218.51974,0.00019178,2]
[424740820,1781111446000,-218.51974,0.00019178,2]
[424740814,1781111446000,-218.51974,0.00019178,2]
[424740824,1781111446000,-218.51974,0.00019178,2]
[424740826,1781111446000,-218.51974,0.00019178,2]
[424740823,1781111446000,-218.51974,0.00019178,2]
[424740817,1781111446000,-218.51974,0.00019178,2]
[424740909,1781111447000,-690.0,0.00019452,2]